fUST/lending_fUST_20250116
["ID","MTS","AMOUNT","RATE_DAILY","PERIOD"]
[349153776,1736997047933,-500.0,0.00019178,2]
[349153777,1736997047942,-500.0,0.00019178,2]
[349153778,1736997047951,-500.0,0.00019178,2]
[349153779,1736997047960,-1001.06,0.00019178,2]
[349153780,1736997047969,-603.17,0.00019178,2]
[349153781,1736997047978,-500.0,0.00019178,2]
[349153782,1736997047987,-500.0,0.00019178,2]
[349153783,1736997047996,-500.0,0.00019178,2]
[349153784,1736997048006,-500.0,0.00019178,2]
[349153786,1736997048016,-500.0,0.00019178,2]
[349153788,1736997048025,-500.0,0.00019178,2]
[349153790,1736997048034,-500.0,0.00019178,2]
[349153792,1736997048044,-500.0,0.00019178,2]
[349153794,1736997048053,-500.0,0.00019178,2]
[349153796,1736997048063,-501.63592278,0.00019178,2]
[349153798,1736997048072,-500.0,0.00019178,2]
[349153800,1736997048081,-188.0,0.00019178,2]
[349153802,1736997048091,-500.0,0.00019178,2]
[349153804,1736997048100,-500.0,0.00019178,2]
[349153806,1736997048109,-698.73,0.00019178,2]
[349153808,1736997048119,-500.0,0.00019178,2]
[349153809,1736997048128,-500.0,0.00019178,2]
[349153812,1736997048138,-500.0,0.00019178,2]
[349153813,1736997048147,-500.0,0.00019178,2]
[349153816,1736997048158,-500.0,0.00019178,2]
[349153818,1736997048167,-500.0,0.00019178,2]
[349153819,1736997048177,-500.0,0.00019178,2]
[349153821,1736997048186,-500.0,0.00019178,2]
[349153823,1736997048196,-500.0,0.00019178,2]
[349153825,1736997048205,-500.0,0.00019178,2]
[349153827,1736997048215,-500.0,0.00019178,2]
[349153829,1736997048225,-500.0,0.00019178,2]
[349153831,1736997048234,-488.28693324,0.00019178,2]
[349153834,1736997048244,-500.0,0.00019178,2]
[349153835,1736997048254,-500.0,0.00019178,2]
[349153838,1736997048266,-500.0,0.00019178,2]
[349153840,1736997048276,-500.0,0.00019178,2]
[349153842,1736997048285,-500.0,0.00019178,2]
[349153843,1736997048295,-500.0,0.00019178,2]
[349153846,1736997048304,-500.0,0.00019178,2]
[349153848,1736997048314,-500.0,0.00019178,2]
[349153850,1736997048324,-500.0,0.00019178,2]
[349153851,1736997048334,-500.0,0.00019178,2]
[349153854,1736997048343,-502.01908741,0.00019178,2]
[349153856,1736997048353,-500.0,0.00019178,2]
[349153858,1736997048362,-503.94318694,0.00019178,2]
[349153859,1736997048371,-500.0,0.00019178,2]
[349153861,1736997048381,-500.0,0.00019178,2]
[349153864,1736997048391,-500.0,0.00019178,2]
[349153865,1736997048401,-500.0,0.00019178,2]
[349153867,1736997048410,-500.0,0.00019178,2]
[349153869,1736997048420,-500.0,0.00019178,2]
[349153871,1736997048430,-500.0,0.00019178,2]
[349153874,1736997048439,-500.0,0.00019178,2]
[349153875,1736997048449,-402.82294609,0.00019178,2]
[349153878,1736997048459,-500.0,0.00019178,2]
[349153880,1736997048469,-500.0,0.00019178,2]
[349153881,1736997048481,-507.76,0.00019178,2]
[349153884,1736997048491,-500.0,0.00019178,2]
[349153886,1736997048500,-500.0,0.00019178,2]
[349153887,1736997048509,-500.0,0.00019178,2]
[349153890,1736997048522,-500.0,0.00019178,2]
[349153891,1736997048532,-1189.58,0.00019178,2]
[349153893,1736997048542,-500.0,0.00019178,2]
[349153895,1736997048552,-500.0,0.00019178,2]
[349153898,1736997048562,-523.63,0.00019178,2]
[349153900,1736997048572,-427.01458491,0.00019178,2]
[349153902,1736997048582,-500.0,0.00019178,2]
[349153904,1736997048591,-1011.03,0.00019178,2]
[349153906,1736997048601,-500.0,0.00019178,2]
[349153908,1736997048611,-500.0,0.00019178,2]
[349153910,1736997048620,-500.0,0.00019178,2]
[349153912,1736997048630,-500.0,0.00019178,2]
[349153914,1736997048639,-500.0,0.00019178,2]
[349153916,1736997048649,-500.0,0.00019178,2]
[349153918,1736997048660,-500.0,0.00019178,2]
[349153920,1736997048669,-500.0,0.00019178,2]
[349153922,1736997048679,-500.0,0.00019178,2]
[349153924,1736997048689,-500.0,0.00019178,2]
[349153926,1736997048699,-500.0,0.00019178,2]
[349153928,1736997048709,-500.0,0.00019178,2]
[349153930,1736997048718,-588.06,0.00019178,2]
[349153932,1736997048728,-500.0,0.00019178,2]
[349153934,1736997048738,-500.0,0.00019178,2]
[349153936,1736997048748,-500.0,0.00019178,2]
[349153938,1736997048758,-500.0,0.00019178,2]
[349153940,1736997048770,-701.57,0.00019178,2]
[349153942,1736997048780,-500.0,0.00019178,2]
[349153944,1736997048790,-234.98057433,0.00019178,2]
[349153946,1736997048800,-500.0,0.00019178,2]
[349153948,1736997048810,-500.0,0.00019178,2]
[349153950,1736997048819,-500.0,0.00019178,2]
[349153952,1736997048829,-501.92344288,0.00019178,2]
[349153954,1736997048839,-507.39015055,0.00019178,2]
[349153956,1736997048848,-502.25128899,0.00019178,2]
[349153958,1736997048858,-500.0,0.00019178,2]
[349153960,1736997048867,-500.0,0.00019178,2]
[349153962,1736997048876,-501.69104942,0.00019178,2]
[349153964,1736997048886,-1056.22,0.00019178,2]
[349153966,1736997048895,-505.94176015,0.00019178,2]
[349153968,1736997048905,-500.0,0.00019178,2]
[349153970,1736997048915,-500.0,0.00019178,2]
[349153973,1736997048924,-508.79451557,0.00019178,2]
[349153975,1736997048934,-500.0,0.00019178,2]
[349153977,1736997048944,-534.86,0.00019178,2]
[349153979,1736997048954,-501.41355077,0.00019178,2]
[349153981,1736997048963,-440.70582693,0.00019178,2]
[349153983,1736997048973,-500.0,0.00019178,2]
[349153985,1736997048983,-500.0,0.00019178,2]
[349153987,1736997048992,-500.0,0.00019178,2]
[349153989,1736997049002,-1270.32,0.00019178,2]
[349153991,1736997049013,-500.0,0.00019178,2]
[349153993,1736997049023,-500.0,0.00019178,2]
[349153995,1736997049033,-500.0,0.00019178,2]
[349153997,1736997049043,-974.41,0.00019178,2]
[349153999,1736997049054,-483.60839104,0.00019178,2]
[349154001,1736997049064,-500.0,0.00019178,2]
[349154003,1736997049074,-223.49032868,0.00019178,2]
[349154005,1736997049083,-500.0,0.00019178,2]
[349154007,1736997049093,-610.25984198,0.00019178,2]
[349154009,1736997049104,-889.62,0.00019178,2]
[349154011,1736997049114,-500.0,0.00019178,2]
[349154013,1736997049124,-858.37,0.00019178,2]
[349154015,1736997049134,-500.0,0.00019178,2]
[349154017,1736997049144,-500.0,0.00019178,2]
[349154019,1736997049153,-500.0,0.00019178,2]
[349154021,1736997049163,-507.69167534,0.00019178,2]
[349154023,1736997049173,-500.0,0.00019178,2]
[349154025,1736997049184,-500.0,0.00019178,2]
[349154027,1736997049194,-589.67,0.00019178,2]
[349154029,1736997049204,-500.0,0.00019178,2]
[349154031,1736997049214,-500.0,0.00019178,2]
[349154033,1736997049225,-500.0,0.00019178,2]
[349154035,1736997049235,-500.0,0.00019178,2]
[349154037,1736997049245,-500.0,0.00019178,2]
[349154039,1736997049255,-500.0,0.00019178,2]
[349154041,1736997049265,-500.0,0.00019178,2]
[349154044,1736997049276,-500.0,0.00019178,2]
[349154046,1736997049286,-500.0,0.00019178,2]
[349154048,1736997049296,-500.0,0.00019178,2]
[349154050,1736997049306,-500.0,0.00019178,2]
[349154052,1736997049316,-500.0,0.00019178,2]
[349154054,1736997049326,-500.0,0.00019178,2]
[349154056,1736997049336,-500.0,0.00019178,2]
[349154058,1736997049346,-500.0,0.00019178,2]
[349154060,1736997049356,-500.0,0.00019178,2]
[349154062,1736997049366,-500.0,0.00019178,2]
[349154064,1736997049375,-500.0,0.00019178,2]
[349154066,1736997049386,-524.22,0.00019178,2]
[349154068,1736997049395,-1380.28,0.00019178,2]
[349154070,1736997049405,-500.0,0.00019178,2]
[349154072,1736997049415,-500.0,0.00019178,2]
[349154074,1736997049424,-500.0,0.00019178,2]
[349154076,1736997049434,-500.0,0.00019178,2]
[349154078,1736997049443,-500.0,0.00019178,2]
[349154080,1736997049452,-200.0,0.00019178,2]
[349154082,1736997049463,-500.0,0.00019178,2]
[349154084,1736997049473,-503.79687182,0.00019178,2]
[349154086,1736997049485,-500.0,0.00019178,2]
[349154088,1736997049494,-1153.74,0.00019178,2]
[349154090,1736997049504,-500.0,0.00019178,2]
[349154092,1736997049513,-500.0,0.00019178,2]
[349154103,1736997049601,-500.0,0.00019178,2]
[349154105,1736997049620,-953.62,0.00019178,2]
[349154107,1736997049630,-500.0,0.00019178,2]
[349154109,1736997049639,-500.0,0.00019178,2]
[349154111,1736997049649,-500.0,0.00019178,2]
[349154113,1736997049658,-500.0,0.00019178,2]
[349154115,1736997049667,-500.0,0.00019178,2]
[349154117,1736997049677,-500.0,0.00019178,2]
[349154119,1736997049686,-1771.98,0.00019178,2]
[349154121,1736997049696,-500.0,0.00019178,2]
[349154123,1736997049705,-500.0,0.00019178,2]
[349154126,1736997049717,-972.3,0.00019178,2]
[349154128,1736997049727,-500.0,0.00019178,2]
[349154130,1736997049736,-500.0,0.00019178,2]
[349154132,1736997049746,-500.0,0.00019178,2]
[349154134,1736997049755,-1134.75,0.00019178,2]
[349154136,1736997049765,-824.55,0.00019178,2]
[349154138,1736997049774,-6494.95,0.00019178,2]
[349154140,1736997049783,-500.0,0.00019178,2]
[349154142,1736997049794,-500.0,0.00019178,2]
[349154144,1736997049804,-997.49,0.00019178,2]
[349154146,1736997049813,-535.79,0.00019178,2]
[349154148,1736997049822,-500.0,0.00019178,2]
[349154150,1736997049831,-500.0,0.00019178,2]
[349154152,1736997049841,-500.0,0.00019178,2]
[349154154,1736997049850,-500.0,0.00019178,2]
[349154156,1736997049860,-500.0,0.00019178,2]
[349154158,1736997049869,-553.07,0.00019178,2]
[349154160,1736997049879,-699.79,0.00019178,2]
[349154162,1736997049888,-500.0,0.00019178,2]
[349154164,1736997049897,-500.0,0.00019178,2]
[349154166,1736997049907,-500.0,0.00019178,2]
[349154168,1736997049916,-500.0,0.00019178,2]
[349154170,1736997049925,-586.99,0.00019178,2]
[349154172,1736997049935,-500.0,0.00019178,2]
[349154174,1736997049944,-823.34,0.00019178,2]
[349154177,1736997049954,-999.63,0.00019178,2]
[349154179,1736997049964,-1478.47,0.00019178,2]
[349154181,1736997049973,-500.0,0.00019178,2]
[349154182,1736997049983,-500.0,0.00019178,2]
[349154185,1736997049992,-500.0,0.00019178,2]
[349154186,1736997050002,-500.0,0.00019178,2]
[349154188,1736997050011,-500.0,0.00019178,2]
[349154191,1736997050022,-500.0,0.00019178,2]
[349154193,1736997050032,-500.0,0.00019178,2]
[349154195,1736997050041,-500.0,0.00019178,2]
[349154197,1736997050051,-500.0,0.00019178,2]
[349154199,1736997050060,-1897.46,0.00019178,2]
[349154201,1736997050069,-507.07,0.00019178,2]
[349154203,1736997050079,-502.16961548,0.00019178,2]
[349154205,1736997050089,-596.6,0.00019178,2]
[349154207,1736997050099,-500.0,0.00019178,2]
[349154209,1736997050108,-694.0,0.00019178,2]
[349154211,1736997050117,-530.6,0.00019178,2]
[349154213,1736997050127,-500.0,0.00019178,2]
[349154215,1736997050137,-500.0,0.00019178,2]
[349154217,1736997050147,-500.0,0.00019178,2]
[349154219,1736997050156,-1215.23,0.00019178,2]
[349154221,1736997050166,-502.82068319,0.00019178,2]
[349154223,1736997050175,-502.68075847,0.00019178,2]
[349154225,1736997050185,-500.0,0.00019178,2]
[349154227,1736997050195,-502.33,0.00019178,2]
[349154229,1736997050206,-500.0,0.00019178,2]
[349154231,1736997050215,-800.91,0.00019178,2]
[349154233,1736997050226,-780.24,0.00019178,2]
[349154235,1736997050235,-501.71768222,0.00019178,2]
[349154237,1736997050245,-411.25646923,0.00019178,2]
[349154239,1736997050256,-1830.1,0.00019178,2]
[349154241,1736997050266,-500.0,0.00019178,2]
[349154242,1736997050276,-500.0,0.00019178,2]
[349154243,1736997050285,-500.0,0.00019178,2]
[349154244,1736997050295,-500.0,0.00019178,2]
[349154245,1736997050305,-479.52287362,0.00019178,2]
[349154246,1736997050315,-500.0,0.00019178,2]
[349154247,1736997050324,-500.0,0.00019178,2]
[349154248,1736997050335,-500.0,0.00019178,2]
[349154249,1736997050344,-501.33141471,0.00019178,2]
[349154250,1736997050353,-500.0,0.00019178,2]
[349154251,1736997050362,-500.0,0.00019178,2]
[349154253,1736997050372,-573.51,0.00019178,2]
[349154255,1736997050381,-655.64,0.00019178,2]
[349154257,1736997050392,-685.27,0.00019178,2]
[349154259,1736997050401,-500.0,0.00019178,2]
[349154261,1736997050411,-500.0,0.00019178,2]
[349154263,1736997050420,-500.0,0.00019178,2]
[349154265,1736997050429,-500.0,0.00019178,2]
[349154267,1736997050438,-500.0,0.00019178,2]
[349154269,1736997050448,-500.0,0.00019178,2]
[349154271,1736997050458,-672.98,0.00019178,2]
[349154273,1736997050467,-500.0,0.00019178,2]
[349154275,1736997050477,-5905.39,0.00019178,2]
[349154277,1736997050491,-501.43810492,0.00019178,2]
[349154279,1736997050500,-500.0,0.00019178,2]
[349154281,1736997050510,-1570.4,0.00019178,2]
[349154283,1736997050522,-501.36411006,0.00019178,2]
[349154286,1736997050533,-500.0,0.00019178,2]
[349154288,1736997050542,-734.87,0.00019178,2]
[349154290,1736997050552,-500.0,0.00019178,2]
[349154292,1736997050562,-500.0,0.00019178,2]
[349154294,1736997050572,-501.18074277,0.00019178,2]
[349154296,1736997050581,-4617.38,0.00019178,2]
[349154298,1736997050591,-1055.46,0.00019178,2]
[349154300,1736997050600,-1133.62,0.00019178,2]
[349154302,1736997050609,-1578.18,0.00019178,2]
[349154304,1736997050619,-500.0,0.00019178,2]
[349154306,1736997050628,-500.0,0.00019178,2]
[349154308,1736997050638,-2069.35,0.00019178,2]
[349154310,1736997050647,-500.0,0.00019178,2]
[349154312,1736997050658,-722.39,0.00019178,2]
[349154314,1736997050667,-501.81240301,0.00019178,2]
[349154316,1736997050676,-554.29,0.00019178,2]
[349154318,1736997050686,-2331.25,0.00019178,2]
[349154320,1736997050695,-1149.24,0.00019178,2]
[349154322,1736997050705,-500.0,0.00019178,2]
[349154324,1736997050714,-403.44934802,0.00019178,2]
[349154326,1736997050723,-500.0,0.00019178,2]
[349154328,1736997050733,-526.4,0.00019178,2]
[349154330,1736997050742,-500.0,0.00019178,2]
[349154332,1736997050752,-600.5844107,0.00019178,2]
[349154334,1736997050761,-500.0,0.00019178,2]
[349154336,1736997050771,-500.0,0.00019178,2]
[349154338,1736997050780,-500.0,0.00019178,2]
[349154340,1736997050790,-500.0,0.00019178,2]
[349154342,1736997050800,-501.79901298,0.00019178,2]
[349154344,1736997050810,-501.29862296,0.00019178,2]
[349154346,1736997050819,-524.48,0.00019178,2]
[349154348,1736997050828,-500.0,0.00019178,2]
[349154350,1736997050839,-500.0,0.00019178,2]
[349154353,1736997050848,-500.0,0.00019178,2]
[349154355,1736997050857,-500.0,0.00019178,2]
[349154357,1736997050867,-500.0,0.00019178,2]
[349154359,1736997050876,-500.0,0.00019178,2]
[349154361,1736997050885,-650.56,0.00019178,2]
[349154363,1736997050895,-1033.82,0.00019178,2]
[349154365,1736997050905,-502.19489261,0.00019178,2]
[349154367,1736997050914,-500.0,0.00019178,2]
[349154369,1736997050923,-1990.24,0.00019178,2]
[349154371,1736997050932,-2425.65,0.00019178,2]
[349154373,1736997050941,-4148.59,0.00019178,2]
[349154375,1736997050950,-500.0,0.00019178,2]
[349154377,1736997050959,-19720.25,0.00019178,2]
[349154379,1736997050969,-501.29303048,0.00019178,2]
[349154381,1736997050979,-503.13558641,0.00019178,2]
[349154383,1736997050989,-3026.92,0.00019178,2]
[349154385,1736997050999,-946.37,0.00019178,2]
[349154387,1736997051008,-500.0,0.00019178,2]
[349154389,1736997051017,-500.0,0.00019178,2]
[349154391,1736997051027,-463.93123605,0.00019178,2]
[349154393,1736997051036,-1607.38,0.00019178,2]
[349154395,1736997051046,-500.0,0.00019178,2]
[349154397,1736997051055,-580.56,0.00019178,2]
[349154399,1736997051064,-500.0,0.00019178,2]
[349154401,1736997051073,-500.0,0.00019178,2]
[349154403,1736997051082,-1144.59,0.00019178,2]
[349154405,1736997051091,-500.0,0.00019178,2]
[349154407,1736997051101,-500.0,0.00019178,2]
[349154409,1736997051109,-1144.59,0.00019178,2]
[349154411,1736997051119,-500.94352834,0.00019178,2]
[349154413,1736997051129,-1144.59,0.00019178,2]
[349154415,1736997051138,-2998.58,0.00019178,2]
[349154417,1736997051147,-1144.59,0.00019178,2]
[349154419,1736997051158,-503.89050975,0.00019178,2]
[349154421,1736997051168,-1144.59,0.00019178,2]
[349154423,1736997051178,-1144.59,0.00019178,2]
[349154425,1736997051188,-1144.59,0.00019178,2]
[349154427,1736997051198,-1144.59,0.00019178,2]
[349154429,1736997051208,-1144.59,0.00019178,2]
[349154431,1736997051217,-1144.59,0.00019178,2]
[349154433,1736997051226,-1144.59,0.00019178,2]
[349154435,1736997051237,-1144.59,0.00019178,2]
[349154437,1736997051246,-1144.59,0.00019178,2]
[349154439,1736997051255,-1144.59,0.00019178,2]
[349154441,1736997051264,-1144.59,0.00019178,2]
[349154443,1736997051274,-1144.59,0.00019178,2]
[349154445,1736997051283,-1144.59,0.00019178,2]
[349154447,1736997051292,-1144.59,0.00019178,2]
[349154449,1736997051301,-500.0,0.00019178,2]
[349154451,1736997051311,-1144.59,0.00019178,2]
[349154453,1736997051320,-559.43,0.00019178,2]
[349154455,1736997051329,-1144.59,0.00019178,2]
[349154457,1736997051338,-1144.59,0.00019178,2]
[349154459,1736997051348,-500.0,0.00019178,2]
[349154470,1736997051357,-1144.59,0.00019178,2]
[349154473,1736997051454,-1144.59,0.00019178,2]
[349154475,1736997051464,-1144.77652417,0.00019178,2]
[349154477,1736997051473,-500.0,0.00019178,2]
[349154479,1736997051486,-1886.42,0.00019178,2]
[349154481,1736997051495,-252.48630424,0.00019178,2]
[349154483,1736997051504,-3551.04,0.00019178,2]
[349154485,1736997051514,-846.85,0.00019178,2]
[349154487,1736997051525,-500.0,0.00019178,2]
[349154489,1736997051535,-500.0,0.00019178,2]
[349154491,1736997051544,-521.44,0.00019178,2]
[349154493,1736997051553,-500.0,0.00019178,2]
[349154495,1736997051564,-569.16,0.00019178,2]
[349154497,1736997051573,-500.0,0.00019178,2]
[349154499,1736997051582,-501.44833374,0.00019178,2]
[349154501,1736997051592,-500.0,0.00019178,2]
[349154503,1736997051602,-501.95855402,0.00019178,2]
[349154505,1736997051611,-500.0,0.00019178,2]
[349154507,1736997051621,-500.0,0.00019178,2]
[349154509,1736997051630,-1775.57,0.00019178,2]
[349154511,1736997051640,-500.0,0.00019178,2]
[349154513,1736997051649,-500.0,0.00019178,2]
[349154515,1736997051658,-500.0,0.00019178,2]
[349154517,1736997051668,-60498.75,0.00019178,2]
[349154519,1736997051678,-500.0,0.00019178,2]
[349154521,1736997051687,-500.0,0.00019178,2]
[349154523,1736997051697,-500.0,0.00019178,2]
[349154525,1736997051706,-500.0,0.00019178,2]
[349154527,1736997051715,-2987.26846539,0.00019178,30]
[349154529,1736997051725,-500.0,0.00019178,2]
[349154531,1736997051734,-500.0,0.00019178,2]
[349154533,1736997051744,-500.0,0.00019178,2]
[349154535,1736997051753,-500.0,0.00019178,2]
[349154537,1736997051763,-945.69,0.00019178,2]
[349154539,1736997051773,-784.57,0.00019178,2]
[349154541,1736997051782,-1757.62,0.00019178,2]
[349154543,1736997051792,-500.0,0.00019178,2]
[349154545,1736997051801,-500.0,0.00019178,2]
[349154547,1736997051810,-500.92731737,0.00019178,2]
[349154549,1736997051819,-500.0,0.00019178,2]
[349154551,1736997051828,-500.0,0.00019178,2]
[349154553,1736997051838,-500.0,0.00019178,2]
[349154555,1736997051848,-566.78,0.00019178,2]
[349154557,1736997051857,-2878.72,0.00019178,2]
[349154559,1736997051867,-500.0,0.00019178,2]
[349154561,1736997051876,-1417.74,0.00019178,2]
[349154563,1736997051885,-1813.24,0.00019178,2]
[349154565,1736997051894,-501.12593242,0.00019178,2]
[349154567,1736997051904,-763.93,0.00019178,2]
[349154569,1736997051914,-502.01836246,0.00019178,2]
[349154571,1736997051923,-500.0,0.00019178,2]
[349154573,1736997051932,-500.0,0.00019178,2]
[349154575,1736997051942,-500.0,0.00019178,2]
[349154577,1736997051951,-5011.24,0.00019178,2]
[349154579,1736997051960,-500.0,0.00019178,2]
[349154581,1736997051970,-500.81882227,0.00019178,2]
[349154583,1736997051979,-14786.63,0.00019178,2]
[349154585,1736997051988,-500.0,0.00019178,2]
[349154587,1736997051998,-500.0,0.00019178,2]
[349154589,1736997052007,-500.0,0.00019178,2]
[349154591,1736997052017,-2935.04,0.00019178,2]
[349154593,1736997052026,-500.0,0.00019178,2]
[349154595,1736997052035,-500.0,0.00019178,2]
[349154597,1736997052045,-500.0,0.00019178,2]
[349154599,1736997052055,-5615.2,0.00019178,2]
[349154601,1736997052064,-500.0,0.00019178,2]
[349154603,1736997052073,-500.0,0.00019178,2]
[349154605,1736997052083,-876.89,0.00019178,2]
[349154607,1736997052092,-500.0,0.00019178,2]
[349154609,1736997052101,-500.0,0.00019178,2]
[349154611,1736997052111,-500.0,0.00019178,2]
[349154613,1736997052120,-557.04,0.00019178,2]
[349154615,1736997052130,-502.68949669,0.00019178,2]
[349154617,1736997052139,-500.0,0.00019178,2]
[349154619,1736997052149,-500.0,0.00019178,2]
[349154621,1736997052158,-500.0,0.00019178,2]
[349154623,1736997052168,-786.81,0.00019178,2]
[349154625,1736997052178,-500.0,0.00019178,2]
[349154627,1736997052188,-500.0,0.00019178,2]
[349154630,1736997052198,-500.0,0.00019178,2]
[349154632,1736997052207,-43384.48,0.00019178,2]
[349154634,1736997052218,-1805.7,0.00019178,2]
[349154635,1736997052228,-1000.0,0.00019178,7]
[349154637,1736997052237,-852.25,0.00019178,2]
[349154640,1736997052247,-1079.63,0.00019178,2]
[349154642,1736997052256,-500.0,0.00019178,2]
[349154643,1736997052266,-630.76,0.00019178,2]
[349154646,1736997052275,-500.0,0.00019178,2]
[349154648,1736997052285,-513.51,0.00019178,2]
[349154650,1736997052294,-500.0,0.00019178,2]
[349154652,1736997052304,-500.0,0.00019178,2]
[349154654,1736997052313,-198.67723417,0.00019178,2]
[349154656,1736997052322,-781.44,0.00019178,2]
[349154658,1736997052331,-13304.78,0.00019178,2]
[349154660,1736997052340,-500.0,0.00019178,2]
[349154662,1736997052350,-500.0,0.00019178,2]
[349154664,1736997052359,-2350.4,0.00019178,2]
[349154666,1736997052368,-766.51,0.00019178,2]
[349154668,1736997052377,-2328.32,0.00019178,2]
[349154670,1736997052387,-500.0,0.00019178,7]
[349154672,1736997052396,-500.0,0.00019178,2]
[349154673,1736997052405,-592.32,0.00019178,2]
[349154674,1736997052414,-486.2907086,0.00019178,2]
[349154675,1736997052423,-500.0,0.00019178,2]
[349154676,1736997052433,-500.0,0.00019178,2]
[349154677,1736997052442,-500.0,0.00019178,2]
[349154678,1736997052452,-500.0,0.00019178,2]
[349154679,1736997052461,-1209.7,0.00019178,2]
[349154680,1736997052471,-500.0,0.00019178,2]
[349154681,1736997052482,-500.0,0.00019178,2]
[349154682,1736997052492,-503.7741724,0.00019178,2]
[349154683,1736997052502,-195.3295218,0.00019178,2]
[349154685,1736997052511,-3000.0,0.0001918,2]
[349154687,1736997052523,-3000.0,0.0001919,2]
[349154689,1736997052532,-152.87495653,0.000192,2]
[349154691,1736997052542,-3000.0,0.000192,2]
[349154693,1736997052552,-600.0,0.000192,2]
[349154695,1736997052561,-3000.0,0.0001921,2]
[349154697,1736997052571,-4387.44750626,0.00019215,2]
[349154721,1736997052778,-4242.80778577,0.00019215,2]
[349154723,1736997052787,-3000.0,0.0001922,2]
[349154725,1736997052796,-1370.07505523,0.0001923,2]
[349154785,1736997053355,-856.74947446,0.0001912,2]
[349154787,1736997053364,-1629.92494477,0.0001923,2]
[349154789,1736997053374,-3000.0,0.0001924,2]
[349154791,1736997053383,-3000.0,0.0001925,2]
[349154793,1736997053392,-2921.61424706,0.0001926,2]
[349154795,1736997053403,-78.38575294,0.0001926,2]
[349154797,1736997053413,-3000.0,0.0001927,2]
[349154799,1736997053422,-3000.0,0.0001928,2]
[349154801,1736997053431,-3000.0,0.0001929,2]
[349154803,1736997053440,-3000.0,0.000193,2]
[349154805,1736997053449,-151.0,0.000193,2]
[349154807,1736997053459,-3000.0,0.0001931,2]
[349154809,1736997053468,-5271.77339787,0.00019314,2]
[349154811,1736997053477,-500.0,0.00019315,3]
[349154813,1736997053490,-500.0,0.00019315,3]
[349154815,1736997053499,-500.0,0.00019315,3]
[349154817,1736997053508,-640.35,0.00019315,3]
[349154819,1736997053519,-575.23,0.00019315,3]
[349154821,1736997053529,-500.0,0.00019315,3]
[349154823,1736997053538,-500.0,0.00019315,3]
[349154825,1736997053548,-503.31893353,0.00019315,3]
[349154827,1736997053558,-771.89,0.00019315,3]
[349154829,1736997053567,-500.0,0.00019315,3]
[349154831,1736997053576,-500.0,0.00019315,3]
[349154833,1736997053586,-500.0,0.00019315,3]
[349154835,1736997053595,-312.90607351,0.00019315,3]
[349154837,1736997053606,-500.0,0.00019315,3]
[349154839,1736997053615,-500.0,0.00019315,3]
[349154841,1736997053625,-500.0,0.00019315,3]
[349154843,1736997053634,-500.0,0.00019315,3]
[349154845,1736997053643,-500.0,0.00019315,3]
[349154847,1736997053653,-501.35629205,0.00019315,3]
[349154850,1736997053663,-500.0,0.00019315,3]
[349154852,1736997053672,-500.0,0.00019315,3]